Workbook

Sheet Index
A1: Index and File Details
B3: Index | H3: File Details
B5: Inputs | D5: Calculations | F5: Outputs | I5: Model | J5: Transgrid | Humelink CPA2 Opex Forecast Model
I6: Author | J6: Transgrid
B7: Notes & Assumptions | D7: Calculations | F7: Outputs | I7: Revision | J7: 2023-11-29
I8: Status | J8: Draft CPA
H12: Instructions
I14: Input Sheets
I15: Fill in any cells marked as input cells as seen on the right => | K15: user input
I16: Historical/
I17: Cells not marked as inputs should not be modified.
I18: Output Sheets
I19: Output costs can be toggled between real and nominal. This is controlled in the "Inputs" sheet.

Sheet Notes & Assumptions
A1: Assumptions & Notes
E3: User inputs in cells coloured like this
C4: * | E4: 1. Inputs are in $. Outputs are $million.
C5: * | E5: 2. Financial years are recorded in the Opex Forecast Model as tax years (eg. 2017/18 is shown as 2018, 2018/19 is shown as 2019)
C6: * | E6: 3. Escalation is treated as follows:
E7: a. CPI escalation and Commodity escalation are treated separately.
E8: c. Escalation is applied to Project Component percentages (commodities - land, labour etc)
A10: Modifications
A11: Date | B11: Version | D11: Who | E11: Notes
A12: 2023-11-29 | B12: 1 | C12: Transgrid | E12: Initial model development to support draft Humelink Stage 2 CPA
A13: 2024-01-01 | B13: 2 | C13: Transgrid | E13: Updated confidentiality

Sheet Inputs
A1: Inputs
B4: Output Reporting Fomat and Year
B5: Real | C5: Nominal or Real Reporting (select from drop-down box)
B6: 2023 | C6: If Real, this is the Financial Year that results are reported in. Not used for Nominal calculations.
B8: =IF(Real_or_Nom="Real", "Real $" & Report_Year, "$ Nominal") -> Real $2023
B10: Indexation and escalation
B13: Forecasts | N13: Rates
B14: Item | C14: Source | D14: Units | N14: 2022 | O14: =N14+1 -> 2023 | P14: 2024 | Q14: 2025 | R14: 2026 | S14: 2027 | T14: 2028
B15: Actual / Forecast Inflation | C15: ABS / RBA / PTRM | D15: % | N15: 0.06144781145 | O15: 0.06026962728 | P15: 0.02919304851 | Q15: 0.02919304851 | R15: 0.02919304851 | S15: 0.02919304851 | T15: 0.02919304851
B16: Real labour escalation | C16: Transgrid AER FD | D16: % | P16: 0.003904656476 | Q16: 0.01307648255 | R16: 0.01154643895 | S16: 0.004330457586 | T16: 0.003009413338
B19: Cumulative factors | N19: Cumulative Factors
B20: Item | C20: Source | D20: Units | N20: =N$14 -> 2022 | O20: =O$14 -> 2023 | P20: 2024 | Q20: 2025 | R20: 2026 | S20: 2027 | T20: 2028
B21: Nominal (mid year) to Real 2023 (end year) | C21: Calculated | D21: Factor | N21: 1.092359635 | O21: 1.029693948 | P21: 0.9857154823 | Q21: 0.9577556744 | R21: 0.9305889462 | S21: 0.9041928018 | T21: 0.8785453838 | V21: Note: this index converts from nominal mid year dollars for each year over 2021-22 to 2027-28 to dollars as at the end of 2022-23 (i.e., Real 2023, end year).
B22: Nominal (end year) to Real 2023 (end year) | C22: Calculated | D22: Factor | N22: 1.060269627 | O22: 1 | P22: 0.971635012 | Q22: 0.9440745965 | R22: 0.9172959318 | S22: 0.8912768437 | T22: 0.8659957867
B23: Labour escalation from 2023 | C23: Calculated | D23: Factor | O23: 1 | P23: 1.003904656 | Q23: 1.017032198 | R23: 1.028775298 | S23: 1.033230366 | T23: 1.036339783
B27: Operating and Maintenance
B29: Maintenance plan requirements | F29: Conversion | L29: Defect | P29: Quantities | V29: Rates (Real $2023) | Z29: Note: unit rates are assumed to be in mid-year dollars
B30: Item | C30: Plan Component | D30: Maintenance Activity | F30: Dollar Year | G30: Escalation Year | I30: Asset class | J30: Location | L30: Allowance (%) | P30: =P$20 -> 2024 | Q30: =Q$20 -> 2025 | R30: =R$20 -> 2026 | S30: =S$20 -> 2027 | T30: =T$20 -> 2028 | V30: Code | W30: Labour | X30: Materials
F31: 2023 | G31: 2023
B32: =J33 -> Humelink East line | F32: End
B33: Requirement 1 | C33: Transmission Lines | D33: Aerial Imagery | I33: Transmission Lines | J33: Humelink East line | L33: c-i-c | P33: 0 | Q33: 0 | R33: 0 | S33: 1 | T33: 1 | V33: TAERIM | W33: c-i-c | X33: c-i-c
B34: Requirement 2 | C34: Transmission Lines | D34: TL Surge Arrestor Inspection and Replacement | I34: Transmission Lines | J34: Humelink East line | L34: c-i-c | P34: 0 | Q34: 0 | R34: 0 | S34: 1 | T34: 1 | V34: TCCT01 | W34: c-i-c | X34: c-i-c
B35: Requirement 3 | C35: Transmission Lines | D35: End Of Defects Liability Climbing Inspections (per 10 structures) | I35: Transmission Lines | J35: Humelink East line | L35: c-i-c | P35: 0 | Q35: 0 | R35: 0 | S35: 0 | T35: 47 | V35: TCCT10 | W35: c-i-c | X35: c-i-c
B36: Requirement 4 | C36: Transmission Lines | D36: End Of Defects Liability Thermographic Inspections (per circuit) | I36: Transmission Lines | J36: Humelink East line | L36: c-i-c | P36: 0 | Q36: 0 | R36: 0 | S36: 0 | T36: 2 | V36: TTHERM | W36: c-i-c | X36: c-i-c
B37: Requirement 5 | C37: Transmission Lines | D37: Annual Compliance Inspection - Bushfire (per 50 structures) | I37: Transmission Lines | J37: Humelink East line | L37: c-i-c | P37: 0 | Q37: 0 | R37: 0 | S37: 2 | T37: 2 | V37: TCI019 | W37: c-i-c | X37: c-i-c
B38: Requirement 6 | C38: Transmission Lines | D38: Compliance Inspection - Public Areas Use (per 10 structures) | I38: Transmission Lines | J38: Humelink East line | L38: c-i-c | P38: 0 | Q38: 0 | R38: 0 | S38: 0 | T38: 1 | V38: TCI009 | W38: c-i-c | X38: c-i-c
B39: Requirement 7 | C39: Easements & Access Tracks | D39: Easement Inspection (per 100 spans) | I39: Land and Easements | J39: Humelink East line | L39: c-i-c | P39: 0 | Q39: 0 | R39: 0 | S39: 0 | T39: 4.5 | V39: TEI100 | W39: c-i-c | X39: c-i-c
B40: Requirement 8 | C40: Easements & Access Tracks | D40: Easement Maintenance | I40: Land and Easements | J40: Humelink East line | L40: c-i-c | P40: 0 | Q40: 0 | R40: 0 | S40: 1 | T40: 1 | V40: TEM250 | W40: c-i-c | X40: c-i-c
B41: Requirement 9 | C41: Easements & Access Tracks | D41: Lidar Scan | I41: Land and Easements | J41: Humelink East line | L41: c-i-c | P41: 0 | Q41: 0 | R41: 0 | S41: 1 | T41: 1 | V41: TLIDR | W41: c-i-c | X41: c-i-c
B43: =J44 -> Humelink West line
B44: Requirement 10 | C44: Transmission Lines | D44: Aerial Imagery | I44: Transmission Lines | J44: Humelink West line | L44: c-i-c | P44: 0 | Q44: 0 | R44: 0 | S44: 1 | T44: 1 | V44: TAERIM | W44: c-i-c | X44: c-i-c
B45: Requirement 11 | C45: Transmission Lines | D45: TL Surge Arrestor Inspection and Replacement | I45: Transmission Lines | J45: Humelink West line | L45: c-i-c | P45: 0 | Q45: 0 | R45: 0 | S45: 1 | T45: 1 | V45: TCCT01 | W45: c-i-c | X45: c-i-c
B46: Requirement 12 | C46: Transmission Lines | D46: End Of Defects Liability Climbing Inspections (per 10 structures) | I46: Transmission Lines | J46: Humelink West line | L46: c-i-c | P46: 0 | Q46: 0 | R46: 0 | S46: 0 | T46: 36 | V46: TCCT10 | W46: c-i-c | X46: c-i-c
B47: Requirement 13 | C47: Transmission Lines | D47: End Of Defects Liability Thermographic Inspections (per circuit) | I47: Transmission Lines | J47: Humelink West line | L47: c-i-c | P47: 0 | Q47: 0 | R47: 0 | S47: 0 | T47: 1 | V47: TTHERM | W47: c-i-c | X47: c-i-c
B48: Requirement 14 | C48: Transmission Lines | D48: Annual Compliance Inspection - Bushfire (per 50 structures) | I48: Transmission Lines | J48: Humelink West line | L48: c-i-c | P48: 0 | Q48: 0 | R48: 0 | S48: 2 | T48: 2 | V48: TCI019 | W48: c-i-c | X48: c-i-c
B49: Requirement 15 | C49: Transmission Lines | D49: Compliance Inspection - Public Areas Use (per 10 structures) | I49: Transmission Lines | J49: Humelink West line | L49: c-i-c | P49: 0 | Q49: 0 | R49: 0 | S49: 0 | T49: 2 | V49: TCI009 | W49: c-i-c | X49: c-i-c
B50: Requirement 16 | C50: Easements & Access Tracks | D50: Easement Inspection (per 100 spans) | I50: Land and Easements | J50: Humelink West line | L50: c-i-c | P50: 0 | Q50: 0 | R50: 0 | S50: 0 | T50: 3.5 | V50: TEI100 | W50: c-i-c | X50: c-i-c
B51: Requirement 17 | C51: Easements & Access Tracks | D51: Easement Maintenance | I51: Land and Easements | J51: Humelink West line | L51: c-i-c | P51: 0 | Q51: 0 | R51: 0 | S51: 1 | T51: 1 | V51: TEM250 | W51: c-i-c | X51: c-i-c
B52: Requirement 18 | C52: Easements & Access Tracks | D52: Lidar Scan | I52: Land and Easements | J52: Humelink West line | L52: c-i-c | P52: 0 | Q52: 0 | R52: 0 | S52: 1 | T52: 1 | V52: TLIDR | W52: c-i-c | X52: c-i-c
B54: =J55 -> Bannaby substation
B55: Requirement 19 | C55: Automation Systems - Protection | D55: Auto Reclose Checks | I55: Secondary Systems | J55: Bannaby substation | L55: c-i-c | P55: 0 | Q55: 0 | R55: 0 | S55: 2 | T55: 2 | V55: PARCL1 | W55: c-i-c | X55: c-i-c
B56: Requirement 20 | C56: Automation Systems - Protection | D56: Warranty Maintenance | I56: Secondary Systems | J56: Bannaby substation | L56: c-i-c | P56: 0 | Q56: 0 | R56: 0 | S56: 4 | T56: 0 | V56: PRXRM1 | W56: c-i-c | X56: c-i-c
B57: Requirement 21 | C57: Telecommunications | D57: Routine Maintenance | I57: Communications (short life) | J57: Bannaby substation | L57: c-i-c | P57: 0 | Q57: 0 | R57: 0 | S57: 1 | T57: 1 | V57: CFOIN1 | W57: c-i-c | X57: c-i-c
B58: Requirement 22 | C58: Substations | D58: Minor Maintenance - Reactive Bays >=80MVA | I58: Substations | J58: Bannaby substation | L58: c-i-c | P58: 0 | Q58: 0 | R58: 0 | S58: 0 | T58: 2 | V58: S0041B | W58: c-i-c | X58: c-i-c
B59: Requirement 23 | C59: Substations | D59: Warranty (Minor Mntce) | I59: Substations | J59: Bannaby substation | L59: c-i-c | P59: 0 | Q59: 0 | R59: 0 | S59: 0 | T59: 6 | V59: S0041B | W59: c-i-c | X59: c-i-c
B60: Requirement 24 | C60: Substations | D60: Warranty (Minor Mntce) | I60: Substations | J60: Bannaby substation | L60: c-i-c | P60: 0 | Q60: 0 | R60: 0 | S60: 0 | T60: 10 | V60: S0900B | W60: c-i-c | X60: c-i-c
B61: Requirement 25 | C61: Substations | D61: Warranty Oil sample | I61: Substations | J61: Bannaby substation | L61: c-i-c | P61: 0 | Q61: 0 | R61: 0 | S61: 0 | T61: 6 | V61: S0955C | W61: c-i-c | X61: c-i-c
B62: Requirement 26 | C62: Substations | D62: Warranty (Major Mntce) | I62: Substations | J62: Bannaby substation | L62: c-i-c | P62: 0 | Q62: 0 | R62: 0 | S62: 2 | T62: 0 | V62: S0600N | W62: c-i-c | X62: c-i-c
B63: Requirement 27 | C63: Substations | D63: Warranty Oil sample | I63: Substations | J63: Bannaby substation | L63: c-i-c | P63: 0 | Q63: 0 | R63: 0 | S63: 2 | T63: 2 | V63: S0955E | W63: c-i-c | X63: c-i-c
B64: Requirement 28 | C64: Substations | D64: Annual Costs for Management of Site - Increment from large site | I64: Substations | J64: Bannaby substation | L64: c-i-c | P64: 0 | Q64: 0 | R64: 0 | S64: 0.3 | T64: 0.3 | V64: Property | W64: c-i-c | X64: c-i-c
B65: Requirement 29 | C65: Substations | D65: Annual Sub Inspect XLARGE Site - Increment from large site | I65: Substations | J65: Bannaby substation | L65: c-i-c | P65: 0 | Q65: 0 | R65: 0 | S65: 0.3 | T65: 0.3 | V65: S1SBXI | W65: c-i-c | X65: c-i-c
B66: Requirement 30 | C66: Substations | D66: XLARGE SUBSTATION THERMOVISON INSPECTION - Increment from large site | I66: Substations | J66: Bannaby substation | L66: c-i-c | P66: 0 | Q66: 0 | R66: 0 | S66: 0.3 | T66: 0.3 | V66: S1THRX | W66: c-i-c | X66: c-i-c
B68: =J69 -> Wagga substation
B69: Requirement 31 | C69: Automation Systems - Protection | D69: Auto Reclose Checks | I69: Secondary Systems | J69: Wagga substation | L69: c-i-c | P69: 0 | Q69: 0 | R69: 0 | S69: 2 | T69: 2 | V69: PARCL1 | W69: c-i-c | X69: c-i-c
B70: Requirement 32 | C70: Telecommunications | D70: Routine Maintenance | I70: Communications (short life) | J70: Wagga substation | L70: c-i-c | P70: 0 | Q70: 0 | R70: 0 | S70: 1 | T70: 1 | V70: CFOIN1 | W70: c-i-c | X70: c-i-c
B71: Requirement 33 | C71: Substations | D71: Warranty (Minor Mntce) | I71: Substations | J71: Wagga substation | L71: c-i-c | P71: 0 | Q71: 0 | R71: 0 | S71: 0 | T71: 5 | V71: S0160B | W71: c-i-c | X71: c-i-c
B72: Requirement 34 | C72: Substations | D72: Warranty (Minor Mntce) | I72: Substations | J72: Wagga substation | L72: c-i-c | P72: 0 | Q72: 0 | R72: 0 | S72: 0 | T72: 7 | V72: S0900B | W72: c-i-c | X72: c-i-c
B73: Requirement 35 | C73: Substations | D73: Warranty Oil sample | I73: Substations | J73: Wagga substation | L73: c-i-c | P73: 0 | Q73: 0 | R73: 0 | S73: 0 | T73: 5 | V73: S0955C | W73: c-i-c | X73: c-i-c
B74: Requirement 36 | C74: Substations | D74: Annual Costs for Management of Site - Increment from large site | I74: Substations | J74: Wagga substation | L74: c-i-c | P74: 0 | Q74: 0 | R74: 0 | S74: 0.3 | T74: 0.3 | V74: Property | W74: c-i-c | X74: c-i-c
B75: Requirement 37 | C75: Substations | D75: Annual Sub Inspect XLARGE Site - Increment from large site | I75: Substations | J75: Wagga substation | L75: c-i-c | P75: 0 | Q75: 0 | R75: 0 | S75: 0.3 | T75: 0.3 | V75: S1SBXI | W75: c-i-c | X75: c-i-c
B76: Requirement 38 | C76: Substations | D76: XLARGE SUBSTATION THERMOVISON INSPECTION - Increment from large site | I76: Substations | J76: Wagga substation | L76: c-i-c | P76: 0 | Q76: 0 | R76: 0 | S76: 0.3 | T76: 0.3 | V76: S1THRX | W76: c-i-c | X76: c-i-c
B78: =J79 -> Gugaa substation
B79: Requirement 39 | C79: Automation Systems - Protection Systems | D79: Filter Checks | I79: Secondary Systems | J79: Gugaa substation | L79: c-i-c | P79: 0 | Q79: 0 | R79: 0 | S79: 2 | T79: 2 | V79: P3454C | W79: c-i-c | X79: c-i-c
B80: Requirement 40 | C80: Automation Systems - Protection Performance Checks | D80: Auto Reclose Checks | I80: Secondary Systems | J80: Gugaa substation | L80: c-i-c | P80: 0 | Q80: 0 | R80: 0 | S80: 4 | T80: 4 | V80: PARCL1 | W80: c-i-c | X80: c-i-c
B81: Requirement 41 | C81: Automation Systems - Protection Systems | D81: Routine Maintenance | I81: Secondary Systems | J81: Gugaa substation | L81: c-i-c | P81: 0 | Q81: 0 | R81: 0 | S81: 2 | T81: 0 | V81: PRXRM1 | W81: c-i-c | X81: c-i-c
B82: Requirement 42 | C82: Automation Systems - Protection Systems | D82: Routine Maintenance | I82: Secondary Systems | J82: Gugaa substation | L82: c-i-c | P82: 0 | Q82: 0 | R82: 0 | S82: 4 | T82: 0 | V82: PTXRM1 | W82: c-i-c | X82: c-i-c
B83: Requirement 43 | C83: Telecommunications | D83: Maintenance | I83: Communications (short life) | J83: Gugaa substation | L83: c-i-c | P83: 0 | Q83: 0 | R83: 0 | S83: 1 | T83: 1 | V83: C12VB1 | W83: c-i-c | X83: c-i-c
B84: Requirement 44 | C84: Telecommunications | D84: OTN Data Backup | I84: Communications (short life) | J84: Gugaa substation | L84: c-i-c | P84: 0 | Q84: 0 | R84: 0 | S84: 1 | T84: 1 | V84: CTG307 | W84: c-i-c | X84: c-i-c
B85: Requirement 45 | C85: Telecommunications | D85: Inspection (with BAS) | I85: Communications (short life) | J85: Gugaa substation | L85: c-i-c | P85: 0 | Q85: 0 | R85: 0 | S85: 1 | T85: 1 | V85: CTG101 | W85: c-i-c | X85: c-i-c
B86: Requirement 46 | C86: Telecommunications | D86: Routine Maintenance | I86: Communications (short life) | J86: Gugaa substation | L86: c-i-c | P86: 0 | Q86: 0 | R86: 0 | S86: 2 | T86: 2 | V86: CFOIN1 | W86: c-i-c | X86: c-i-c
B87: Requirement 47 | C87: Telecommunications | D87: Equipment Maintenance | I87: Communications (short life) | J87: Gugaa substation | L87: c-i-c | P87: 0 | Q87: 0 | R87: 0 | S87: 1 | T87: 1 | V87: CVHFR1 | W87: c-i-c | X87: c-i-c
B88: Requirement 48 | C88: Substations Assets | D88: Warranty (Minor Mntce) | I88: Substations | J88: Gugaa substation | L88: c-i-c | P88: 0 | Q88: 0 | R88: 0 | S88: 0 | T88: 6 | V88: S0160B | W88: c-i-c | X88: c-i-c
B89: Requirement 49 | C89: Substations Assets | D89: Minor Maintenance - Reactive Bays >=80MVA | I89: Substations | J89: Gugaa substation | L89: c-i-c | P89: 0 | Q89: 0 | R89: 0 | S89: 0 | T89: 1 | V89: S0041B | W89: c-i-c | X89: c-i-c
B90: Requirement 50 | C90: Substations | D90: Warranty (Minor Mntce) | I90: Substations | J90: Gugaa substation | L90: c-i-c | P90: 0 | Q90: 0 | R90: 0 | S90: 0 | T90: 6 | V90: S0041B | W90: c-i-c | X90: c-i-c
B91: Requirement 51 | C91: Substations | D91: Warranty (Minor Mntce) | I91: Substations | J91: Gugaa substation | L91: c-i-c | P91: 0 | Q91: 0 | R91: 0 | S91: 0 | T91: 22 | V91: S0900B | W91: c-i-c | X91: c-i-c
B92: Requirement 52 | C92: Substations | D92: Warranty (Major Mntce) | I92: Substations | J92: Gugaa substation | L92: c-i-c | P92: 0 | Q92: 0 | R92: 0 | S92: 2 | T92: 0 | V92: S0601A | W92: c-i-c | X92: c-i-c
B93: Requirement 53 | C93: Substations | D93: Warranty Oil sample | I93: Substations | J93: Gugaa substation | L93: c-i-c | P93: 0 | Q93: 0 | R93: 0 | S93: 0 | T93: 12 | V93: S0955C | W93: c-i-c | X93: c-i-c
B94: Requirement 54 | C94: Substations | D94: Warranty (Major Mntce) | I94: Substations | J94: Gugaa substation | L94: c-i-c | P94: 0 | Q94: 0 | R94: 0 | S94: 2 | T94: 0 | V94: S0600N | W94: c-i-c | X94: c-i-c
B95: Requirement 55 | C95: Substations | D95: Oil Sample | I95: Substations | J95: Gugaa substation | L95: c-i-c | P95: 0 | Q95: 0 | R95: 0 | S95: 2 | T95: 2 | V95: S0955E | W95: c-i-c | X95: c-i-c
B96: Requirement 56 | C96: OHS & Compliance | D96: 6 MTH SAFETY INSPECTION CHECKLIST | J96: Gugaa substation | L96: c-i-c | P96: 0 | Q96: 0 | R96: 0 | S96: 2 | T96: 2 | V96: G26001 | W96: c-i-c | X96: c-i-c
B97: Requirement 57 | C97: OHS & Compliance | D97: Defibrillator- Check Expiry Date of Pads | J97: Gugaa substation | L97: c-i-c | P97: 0 | Q97: 0 | R97: 0 | S97: 0 | T97: 1 | V97: S2093B | W97: c-i-c | X97: c-i-c
B98: Requirement 58 | C98: Substations | D98: Annual Sub Inspect XLARGE Site | I98: Substations | J98: Gugaa substation | L98: c-i-c | P98: 0 | Q98: 0 | R98: 0 | S98: 1 | T98: 1 | V98: S1SBXI | W98: c-i-c | X98: c-i-c
B99: Requirement 59 | C99: Substations | D99: XLARGE SUBSTATION THERMOVISON INSPECTION | I99: Substations | J99: Gugaa substation | L99: c-i-c | P99: 0 | Q99: 0 | R99: 0 | S99: 1 | T99: 1 | V99: S1THRX | W99: c-i-c | X99: c-i-c
B100: Requirement 60 | C100: Automation Systems - Protection Systems | D100: Warranty (Minor Mntce) | I100: Secondary Systems | J100: Gugaa substation | L100: c-i-c | P100: 0 | Q100: 0 | R100: 0 | S100: 1 | T100: 0 | V100: P1BHZ1 | W100: c-i-c | X100: c-i-c
B101: Requirement 61 | C101: Substations | D101: Warranty (Major Mntce) | I101: Substations | J101: Gugaa substation | L101: c-i-c | P101: 0 | Q101: 0 | R101: 0 | S101: 7 | T101: 0 | V101: S0600A | W101: c-i-c | X101: c-i-c
B102: Requirement 62 | C102: Substations | D102: Oil Sample | I102: Substations | J102: Gugaa substation | L102: c-i-c | P102: 0 | Q102: 0 | R102: 0 | S102: 7 | T102: 7 | V102: S0955A | W102: c-i-c | X102: c-i-c
B103: Requirement 63 | C103: Substations | D103: Routine Maintenance | I103: Substations | J103: Gugaa substation | L103: c-i-c | P103: 0 | Q103: 0 | R103: 0 | S103: 7 | T103: 7 | V103: S0650B | W103: c-i-c | X103: c-i-c
B104: Requirement 64 | C104: Substations | D104: Warranty (Major Mntce) | I104: Substations | J104: Gugaa substation | L104: c-i-c | P104: 0 | Q104: 0 | R104: 0 | S104: 7 | T104: 0 | V104: S0658A | W104: c-i-c | X104: c-i-c
B105: Requirement 65 | C105: Substations | D105: Annual Costs for Management of Site | I105: Substations | J105: Gugaa substation | L105: c-i-c | P105: 0 | Q105: 0 | R105: 0 | S105: 1 | T105: 1 | V105: Property | W105: c-i-c | X105: c-i-c
B106: Requirement 66 | C106: Substations | D106: Warranty Oil sample | I106: Substations | J106: Gugaa substation | L106: c-i-c | P106: 0 | Q106: 0 | R106: 0 | S106: 1 | T106: 0 | V106: S0955F | W106: c-i-c | X106: c-i-c
B108: =J109 -> Maragle substation
B109: Requirement 67 | C109: Automation Systems - Protection Systems | D109: Filter Checks | I109: Secondary Systems | J109: Maragle substation | L109: c-i-c | P109: 0 | Q109: 0 | R109: 0 | S109: 1 | T109: 2 | V109: P3454C | W109: c-i-c | X109: c-i-c
B110: Requirement 68 | C110: Automation Systems - Protection Performance Checks | D110: Auto Reclose Checks | I110: Secondary Systems | J110: Maragle substation | L110: c-i-c | P110: 0 | Q110: 0 | R110: 0 | S110: 0 | T110: 2 | V110: PARCL1 | W110: c-i-c | X110: c-i-c
B111: Requirement 69 | C111: Automation Systems - Protection Systems | D111: Routine Maintenance | I111: Secondary Systems | J111: Maragle substation | L111: c-i-c | P111: 0 | Q111: 0 | R111: 0 | S111: 0 | T111: 4 | V111: PRXRM1 | W111: c-i-c | X111: c-i-c
B112: Requirement 70 | C112: Automation Systems - Protection Systems | D112: Routine Maintenance | I112: Secondary Systems | J112: Maragle substation | L112: c-i-c | P112: 0 | Q112: 0 | R112: 0 | S112: 0 | T112: 6 | V112: PTXRM1 | W112: c-i-c | X112: c-i-c
B113: Requirement 71 | C113: Telecommunications | D113: Maintenance | I113: Communications (short life) | J113: Maragle substation | L113: c-i-c | P113: 0 | Q113: 0 | R113: 0 | S113: 0 | T113: 1 | V113: C12VB1 | W113: c-i-c | X113: c-i-c
B114: Requirement 72 | C114: Telecommunications | D114: OTN Data Backup | I114: Communications (short life) | J114: Maragle substation | L114: c-i-c | P114: 0 | Q114: 0 | R114: 0 | S114: 0 | T114: 1 | V114: CTG307 | W114: c-i-c | X114: c-i-c
B115: Requirement 73 | C115: Telecommunications | D115: Inspection (with BAS) | I115: Communications (short life) | J115: Maragle substation | L115: c-i-c | P115: 0 | Q115: 0 | R115: 0 | S115: 0 | T115: 1 | V115: CTG101 | W115: c-i-c | X115: c-i-c
B116: Requirement 74 | C116: Telecommunications | D116: Routine Maintenance | I116: Communications (short life) | J116: Maragle substation | L116: c-i-c | P116: 0 | Q116: 0 | R116: 0 | S116: 0 | T116: 1 | V116: CFOIN1 | W116: c-i-c | X116: c-i-c
B117: Requirement 75 | C117: Telecommunications | D117: Equipment Maintenance | I117: Communications (short life) | J117: Maragle substation | L117: c-i-c | P117: 0 | Q117: 0 | R117: 0 | S117: 0 | T117: 1 | V117: CVHFR1 | W117: c-i-c | X117: c-i-c
B118: Requirement 76 | C118: Substations | D118: Warranty (Minor Mntce) | I118: Substations | J118: Maragle substation | L118: c-i-c | P118: 0 | Q118: 0 | R118: 0 | S118: 0 | T118: 1 | V118: S0160B | W118: c-i-c | X118: c-i-c
B119: Requirement 77 | C119: Substations | D119: Minor Maintenance - Reactive Bays >=80MVA | I119: Substations | J119: Maragle substation | L119: c-i-c | P119: 0 | Q119: 0 | R119: 0 | S119: 0 | T119: 2 | V119: S0041B | W119: c-i-c | X119: c-i-c
B120: Requirement 78 | C120: Substations | D120: Warranty (Minor Mntce) | I120: Substations | J120: Maragle substation | L120: c-i-c | P120: 0 | Q120: 0 | R120: 0 | S120: 0 | T120: 8 | V120: S0041B | W120: c-i-c | X120: c-i-c
B121: Requirement 79 | C121: Substations | D121: Warranty (Minor Mntce) | I121: Substations | J121: Maragle substation | L121: c-i-c | P121: 0 | Q121: 0 | R121: 0 | S121: 0 | T121: 20 | V121: S0900B | W121: c-i-c | X121: c-i-c
B122: Requirement 80 | C122: Substations | D122: Warranty (Major Mntce) | I122: Substations | J122: Maragle substation | L122: c-i-c | P122: 0 | Q122: 0 | R122: 0 | S122: 0 | T122: 3 | V122: S0601A | W122: c-i-c | X122: c-i-c
B123: Requirement 81 | C123: Substations | D123: Warranty Oil sample | I123: Substations | J123: Maragle substation | L123: c-i-c | P123: 0 | Q123: 0 | R123: 0 | S123: 0 | T123: 9 | V123: S0955C | W123: c-i-c | X123: c-i-c
B124: Requirement 82 | C124: Substations | D124: Warranty (Major Mntce) | I124: Substations | J124: Maragle substation | L124: c-i-c | P124: 0 | Q124: 0 | R124: 0 | S124: 0 | T124: 2 | V124: S0600N | W124: c-i-c | X124: c-i-c
B125: Requirement 83 | C125: Substations | D125: Oil Sample | I125: Substations | J125: Maragle substation | L125: c-i-c | P125: 0 | Q125: 0 | R125: 0 | S125: 0 | T125: 2 | V125: S0955E | W125: c-i-c | X125: c-i-c
B126: Requirement 84 | C126: OHS & Compliance | D126: 6 MTH SAFETY INSPECTION CHECKLIST | J126: Maragle substation | L126: c-i-c | P126: 0 | Q126: 0 | R126: 0 | S126: 1 | T126: 2 | V126: G26001 | W126: c-i-c | X126: c-i-c
B127: Requirement 85 | C127: OHS & Compliance | D127: Defibrillator- Check Expiry Date of Pads | J127: Maragle substation | L127: c-i-c | P127: 0 | Q127: 0 | R127: 0 | S127: 0 | T127: 1 | V127: S2093B | W127: c-i-c | X127: c-i-c
B128: Requirement 86 | C128: Substations | D128: Annual Sub Inspect XLARGE Site | I128: Substations | J128: Maragle substation | L128: c-i-c | P128: 0 | Q128: 0 | R128: 0 | S128: 0 | T128: 1 | V128: S1SBXI | W128: c-i-c | X128: c-i-c
B129: Requirement 87 | C129: Substations | D129: XLARGE SUBSTATION THERMOVISON INSPECTION | I129: Substations | J129: Maragle substation | L129: c-i-c | P129: 0 | Q129: 0 | R129: 0 | S129: 0 | T129: 1 | V129: S1THRX | W129: c-i-c | X129: c-i-c
B130: Requirement 88 | C130: Automation Systems - Protection Systems | D130: Warranty (Minor Mntce) | I130: Secondary Systems | J130: Maragle substation | L130: c-i-c | P130: 0 | Q130: 0 | R130: 0 | S130: 0 | T130: 9 | V130: P1BHZ1 | W130: c-i-c | X130: c-i-c
B131: Requirement 89 | C131: Substations | D131: Warranty (Major Mntce) | I131: Substations | J131: Maragle substation | L131: c-i-c | P131: 0 | Q131: 0 | R131: 0 | S131: 0 | T131: 9 | V131: S0600A | W131: c-i-c | X131: c-i-c
B132: Requirement 90 | C132: Substations | D132: Oil Sample | I132: Substations | J132: Maragle substation | L132: c-i-c | P132: 0 | Q132: 0 | R132: 0 | S132: 0 | T132: 9 | V132: S0955A | W132: c-i-c | X132: c-i-c
B133: Requirement 91 | C133: Substations | D133: Routine Maintenance | I133: Substations | J133: Maragle substation | L133: c-i-c | P133: 0 | Q133: 0 | R133: 0 | S133: 0 | T133: 9 | V133: S0650B | W133: c-i-c | X133: c-i-c
B134: Requirement 92 | C134: Substations | D134: Warranty (Major Mntce) | I134: Substations | J134: Maragle substation | L134: c-i-c | P134: 0 | Q134: 0 | R134: 0 | S134: 0 | T134: 9 | V134: S0658A | W134: c-i-c | X134: c-i-c
B135: Requirement 93 | C135: Substations | D135: Annual Costs for Management of Site | I135: Substations | J135: Maragle substation | L135: c-i-c | P135: 0 | Q135: 0 | R135: 0 | S135: 0.5 | T135: 1 | V135: Property | W135: c-i-c | X135: c-i-c
B136: Requirement 94 | C136: Substations | D136: Warranty Oil sample | I136: Substations | J136: Maragle substation | L136: c-i-c | P136: 0 | Q136: 0 | R136: 0 | S136: 0 | T136: 9 | V136: S0955F | W136: c-i-c | X136: c-i-c
B138: =C139 -> Asset Management
B139: Requirement 95 | C139: Asset Management | D139: Develop and maintain asset renewal and maintenance strategies - incremental | L139: c-i-c | P139: 0 | Q139: 0 | R139: 0 | S139: 1 | T139: 0.5 | V139: Asset Manager - Senior | W139: c-i-c | X139: 0
O141: Total cost | P141: =SUMPRODUCT(P$33:P$139,(1+$L$33:$L$139),--$W$33:$W$139+$X$33:$X$139) ->  | Q141: =SUMPRODUCT(Q$33:Q$139,(1+$L$33:$L$139),--$W$33:$W$139+$X$33:$X$139) ->  | R141: =SUMPRODUCT(R$33:R$139,(1+$L$33:$L$139),--$W$33:$W$139+$X$33:$X$139) ->  | S141: =SUMPRODUCT(S$33:S$139,(1+$L$33:$L$139),--$W$33:$W$139+$X$33:$X$139) ->  | T141: =SUMPRODUCT(T$33:T$139,(1+$L$33:$L$139),--$W$33:$W$139+$X$33:$X$139) ->  | V141: Note: this is the total cost excluding labour escalation and inflation
B144: Property costs
B147: =B144 -> Property costs | F147: Conversion | I147: Location | P147: ="Cost (As Incurred) (Real $"&F149&", "&F150&" year)" -> Cost (As Incurred) (Real $2023, End year)
B148: Item | C148: Description | D148: Units | F148: Dollar Year | P148: =P$20 -> 2024 | Q148: =Q$20 -> 2025 | R148: =R$20 -> 2026 | S148: =S$20 -> 2027 | T148: =T$20 -> 2028
B149: Component 1 | C149: Land Tax | D149: $Dollars | F149: 2023 | I149: Gugaa | P149: 0 | Q149: 50000 | R149: 50000 | S149: 50000 | T149: 50000
B150: Component 2 | C150: LGA Charges | D150: $Dollars | F150: End | I150: Gugaa | P150: 0 | Q150: 15000 | R150: 15000 | S150: 15000 | T150: 15000
B151: Component 3 | C151: Electricity Cost | D151: $Dollars | I151: Gugaa | P151: 0 | Q151: 0 | R151: 0 | S151: 6000 | T151: 6000
B152: Component 4 | C152: Other landholder costs (sewage, water etc) | D152: $Dollars | I152: Gugaa | P152: 0 | Q152: 0 | R152: 0 | S152: 4000 | T152: 4000
B153: Component 5 | C153: Land Tax | D153: $Dollars | I153: Maragle | P153: 0 | Q153: 6040 | R153: 6040 | S153: 6040 | T153: 6040
B154: Component 6 | C154: LGA Charges | D154: $Dollars | I154: Maragle | P154: 0 | Q154: 5000 | R154: 5000 | S154: 5000 | T154: 5000
B155: Component 7 | C155: Electricity Cost | D155: $Dollars | I155: Maragle | P155: 0 | Q155: 0 | R155: 0 | S155: 4000 | T155: 4000
B156: Component 8 | C156: Other landholder costs (sewage, water etc) | D156: $Dollars | I156: Maragle | P156: 0 | Q156: 0 | R156: 0 | S156: 4000 | T156: 4000
O158: Total cost | P158: =SUM(P149:P156) -> 0 | Q158: =SUM(Q149:Q156) -> 76040 | R158: =SUM(R149:R156) -> 76040 | S158: =SUM(S149:S156) -> 94040 | T158: =SUM(T149:T156) -> 94040
B161: Easement establishment costs
B164: =B161 -> Easement establishment costs | F164: Conversion | P164: ="Cost (As Incurred) (Real $"&F166&", "&F167&" year)" -> Cost (As Incurred) (Real $2023, End year)
B165: Item | C165: Source | D165: Units | F165: Dollar Year | P165: =P$20 -> 2024 | Q165: =Q$20 -> 2025 | R165: =R$20 -> 2026 | S165: =S$20 -> 2027 | T165: =T$20 -> 2028
B166: Establishment Costs | C166: TransGrid / Calculated | D166: $Dollars | F166: 2023 | P166: 0 | Q166: 60000 | R166: 60000 | S166: 60000 | T166: 60000
F167: End
B170: Strategic benefit payments
B173: =B170 -> Strategic benefit payments | F173: Conversion | I173: Length and rates | L173: Period | P173: ="Cost (As Incurred) (Real $"&F175&", "&F176&" year)" -> Cost (As Incurred) (Real $2022, End year)
B174: Item | C174: Source | D174: Units | F174: Dollar Year | I174: Distance of line on private land (kms) | J174: Rate/km | L174: Years | P174: =P$20 -> 2024 | Q174: =Q$20 -> 2025 | R174: =R$20 -> 2026 | S174: =S$20 -> 2027 | T174: =T$20 -> 2028
B175: East | C175: TransGrid / Calculated | D175: $Dollars | F175: 2022 | I175: 204.06824 | J175: 200000 | L175: 20 | P175: 0 | Q175: 0 | R175: 0 | S175: 2040682.4 | T175: 2040682.4
B176: West | C176: TransGrid / Calculated | D176: $Dollars | F176: End | I176: 89.73363 | J176: 200000 | L176: 20 | P176: 0 | Q176: 0 | R176: 0 | S176: 897336.3 | T176: 897336.3
O178: Total payments | P178: =SUM(P175:P176) -> 0 | Q178: =SUM(Q175:Q176) -> 0 | R178: =SUM(R175:R176) -> 0 | S178: =SUM(S175:S176) -> 2938018.7 | T178: =SUM(T175:T176) -> 2938018.7
B181: Insurance costs
B184: =B181 -> Insurance costs | F184: Conversion | P184: ="Cost (As Incurred) (Real $"&F186&", "&F187&" year)" -> Cost (As Incurred) (Real $2023, Mid year)
B185: Item | C185: Source | D185: Units | F185: Dollar Year | P185: =P$20 -> 2024 | Q185: =Q$20 -> 2025 | R185: =R$20 -> 2026 | S185: =S$20 -> 2027 | T185: =T$20 -> 2028
B186: Annual insurance premium | C186: AON | D186: $Dollars | F186: 2023 | P186: 0 | Q186: 0 | R186: 0 | S186: 3491031.5 | T186: 3491031.5 | V186: Note: premium calculated as average of high and low estimates provided by AON
F187: Mid
B190: Vegetaion integrity rehabilitation costs
B193: =B190 -> Vegetaion integrity rehabilitation costs | F193: Conversion | P193: ="Cost (As Incurred) (Real $"&F195&", "&F196&" year)" -> Cost (As Incurred) (Real $2023, End year)
B194: Item | C194: Source | D194: Units | F194: Dollar Year | P194: =P$20 -> 2024 | Q194: =Q$20 -> 2025 | R194: =R$20 -> 2026 | S194: =S$20 -> 2027 | T194: =T$20 -> 2028
B195: Vegetaion integrity rehabilitation costs | C195: Transgrid | D195: $Dollars | F195: 2023 | P195: 0 | Q195: 0 | R195: 0 | S195: 357000 | T195: 357000
F196: End
B199: Debt raising costs
B202: =B199 -> Debt raising costs | F202: Conversion | P202: ="Cost (As Incurred) (Real $"&F204&", "&F205&" year)" -> Cost (As Incurred) (Real $2023, End year)
B203: Item | C203: Source | D203: Units | F203: Dollar Year | P203: =P$20 -> 2024 | Q203: =Q$20 -> 2025 | R203: =R$20 -> 2026 | S203: =S$20 -> 2027 | T203: =T$20 -> 2028
B204: Debt raising cost allowance | C204: PTRM | D204: $Dollars | F204: 2023 | P204: 0 | Q204: 38243.59956 | R204: 1094884.005 | S204: 2075390.964 | T204: 2104318.935
F205: End
B208: End

Sheet Calculations
A1: Calculations | E1: =Inputs!$B$8 -> Real $2023
B3: =Inputs!$B$27 -> Operating and Maintenance | L3: Total
B4: Activity | C4: Dollar basis | D4: Units | E4: =Inputs!N$20 -> 2022 | F4: =Inputs!O$20 -> 2023 | G4: =Inputs!P$20 -> 2024 | H4: =Inputs!Q$20 -> 2025 | I4: =Inputs!R$20 -> 2026 | J4: =Inputs!S$20 -> 2027 | K4: =Inputs!T$20 -> 2028
B6: =Inputs!B32 -> Humelink East line
B7: Labour | C7: =Inputs!$B$8 -> Real $2023 | D7: Dollars | G7: =SUM(Inputs!P$33:P$139*Inputs!$W$33:$W$139*(1+Inputs!$L$33:$L$139)*(Inputs!$J$33:$J$139=$B6))*INDEX(IF(Inputs!$F$32="Mid",Inputs!$N$21:$T$21,Inputs!$N$22:$T$22),MATCH(Inputs!$F$31,Inputs!$N$20:$T$20,0)) ->  | H7: =SUM(Inputs!Q$33:Q$139*Inputs!$W$33:$W$139*(1+Inputs!$L$33:$L$139)*(Inputs!$J$33:$J$139=$B6))*INDEX(IF(Inputs!$F$32="Mid",Inputs!$N$21:$T$21,Inputs!$N$22:$T$22),MATCH(Inputs!$F$31,Inputs!$N$20:$T$20,0)) ->  | I7: =SUM(Inputs!R$33:R$139*Inputs!$W$33:$W$139*(1+Inputs!$L$33:$L$139)*(Inputs!$J$33:$J$139=$B6))*INDEX(IF(Inputs!$F$32="Mid",Inputs!$N$21:$T$21,Inputs!$N$22:$T$22),MATCH(Inputs!$F$31,Inputs!$N$20:$T$20,0)) ->  | J7: 14355.65582 | K7: 104187.6915 | L7: 118543.3473
B8: Labour escalation | C8: =Inputs!$B$8 -> Real $2023 | D8: Dollars | G8: =G7*(Inputs!P$23-1) ->  | H8: =H7*(Inputs!Q$23-1) ->  | I8: =I7*(Inputs!R$23-1) ->  | J8: 477.0436997 | K8: 3786.158143 | L8: 4263.201843
B9: Materials | C9: =Inputs!$B$8 -> Real $2023 | D9: Dollars | G9: =SUM(Inputs!P$33:P$139*Inputs!$X$33:$X$139*(1+Inputs!$L$33:$L$139)*(Inputs!$J$33:$J$139=$B6))*INDEX(IF(Inputs!$F$32="Mid",Inputs!$N$21:$T$21,Inputs!$N$22:$T$22),MATCH(Inputs!$F$31,Inputs!$N$20:$T$20,0)) ->  | H9: =SUM(Inputs!Q$33:Q$139*Inputs!$X$33:$X$139*(1+Inputs!$L$33:$L$139)*(Inputs!$J$33:$J$139=$B6))*INDEX(IF(Inputs!$F$32="Mid",Inputs!$N$21:$T$21,Inputs!$N$22:$T$22),MATCH(Inputs!$F$31,Inputs!$N$20:$T$20,0)) ->  | I9: =SUM(Inputs!R$33:R$139*Inputs!$X$33:$X$139*(1+Inputs!$L$33:$L$139)*(Inputs!$J$33:$J$139=$B6))*INDEX(IF(Inputs!$F$32="Mid",Inputs!$N$21:$T$21,Inputs!$N$22:$T$22),MATCH(Inputs!$F$31,Inputs!$N$20:$T$20,0)) ->  | J9: 322902.27 | K9: 966425.53 | L9: 1289327.8
B10: Sub-Total | C10: =Inputs!$B$8 -> Real $2023 | D10: Dollars | G10: =SUM(G7:G9) ->  | J10: 337734.9695 | K10: 1074399.38 | L10: 1412134.349
B12: =Inputs!B43 -> Humelink West line
B13: Labour | C13: =Inputs!$B$8 -> Real $2023 | D13: Dollars | G13: =SUM(Inputs!P$33:P$139*Inputs!$W$33:$W$139*(1+Inputs!$L$33:$L$139)*(Inputs!$J$33:$J$139=$B12))*INDEX(IF(Inputs!$F$32="Mid",Inputs!$N$21:$T$21,Inputs!$N$22:$T$22),MATCH(Inputs!$F$31,Inputs!$N$20:$T$20,0)) ->  | H13: =SUM(Inputs!Q$33:Q$139*Inputs!$W$33:$W$139*(1+Inputs!$L$33:$L$139)*(Inputs!$J$33:$J$139=$B12))*INDEX(IF(Inputs!$F$32="Mid",Inputs!$N$21:$T$21,Inputs!$N$22:$T$22),MATCH(Inputs!$F$31,Inputs!$N$20:$T$20,0)) ->  | I13: =SUM(Inputs!R$33:R$139*Inputs!$W$33:$W$139*(1+Inputs!$L$33:$L$139)*(Inputs!$J$33:$J$139=$B12))*INDEX(IF(Inputs!$F$32="Mid",Inputs!$N$21:$T$21,Inputs!$N$22:$T$22),MATCH(Inputs!$F$31,Inputs!$N$20:$T$20,0)) ->  | J13: 14355.65582 | K13: 84538.60691 | L13: 98894.26273
B14: Labour escalation | C14: =Inputs!$B$8 -> Real $2023 | D14: Dollars | G14: =G13*(Inputs!P$23-1) ->  | H14: =H13*(Inputs!Q$23-1) ->  | I14: =I13*(Inputs!R$23-1) ->  | J14: 477.0436997 | K14: 3072.114666 | L14: 3549.158366
B15: Materials | C15: =Inputs!$B$8 -> Real $2023 | D15: Dollars | G15: =SUM(Inputs!P$33:P$139*Inputs!$X$33:$X$139*(1+Inputs!$L$33:$L$139)*(Inputs!$J$33:$J$139=$B12))*INDEX(IF(Inputs!$F$32="Mid",Inputs!$N$21:$T$21,Inputs!$N$22:$T$22),MATCH(Inputs!$F$31,Inputs!$N$20:$T$20,0)) ->  | H15: =SUM(Inputs!Q$33:Q$139*Inputs!$X$33:$X$139*(1+Inputs!$L$33:$L$139)*(Inputs!$J$33:$J$139=$B12))*INDEX(IF(Inputs!$F$32="Mid",Inputs!$N$21:$T$21,Inputs!$N$22:$T$22),MATCH(Inputs!$F$31,Inputs!$N$20:$T$20,0)) ->  | I15: =SUM(Inputs!R$33:R$139*Inputs!$X$33:$X$139*(1+Inputs!$L$33:$L$139)*(Inputs!$J$33:$J$139=$B12))*INDEX(IF(Inputs!$F$32="Mid",Inputs!$N$21:$T$21,Inputs!$N$22:$T$22),MATCH(Inputs!$F$31,Inputs!$N$20:$T$20,0)) ->  | J15: 280981.02 | K15: 772526.14 | L15: 1053507.16
B16: Sub-Total | C16: =Inputs!$B$8 -> Real $2023 | D16: Dollars | G16: =SUM(G13:G15) ->  | J16: 295813.7195 | K16: 860136.8616 | L16: 1155950.581
B18: =Inputs!B54 -> Bannaby substation
B19: Labour | C19: =Inputs!$B$8 -> Real $2023 | D19: Dollars | G19: =SUM(Inputs!P$33:P$139*Inputs!$W$33:$W$139*(1+Inputs!$L$33:$L$139)*(Inputs!$J$33:$J$139=$B18))*INDEX(IF(Inputs!$F$32="Mid",Inputs!$N$21:$T$21,Inputs!$N$22:$T$22),MATCH(Inputs!$F$31,Inputs!$N$20:$T$20,0)) ->  | H19: =SUM(Inputs!Q$33:Q$139*Inputs!$W$33:$W$139*(1+Inputs!$L$33:$L$139)*(Inputs!$J$33:$J$139=$B18))*INDEX(IF(Inputs!$F$32="Mid",Inputs!$N$21:$T$21,Inputs!$N$22:$T$22),MATCH(Inputs!$F$31,Inputs!$N$20:$T$20,0)) ->  | I19: =SUM(Inputs!R$33:R$139*Inputs!$W$33:$W$139*(1+Inputs!$L$33:$L$139)*(Inputs!$J$33:$J$139=$B18))*INDEX(IF(Inputs!$F$32="Mid",Inputs!$N$21:$T$21,Inputs!$N$22:$T$22),MATCH(Inputs!$F$31,Inputs!$N$20:$T$20,0)) ->  | J19: 92492.82621 | K19: 520249.1193 | L19: 612741.9456
B20: Labour escalation | C20: =Inputs!$B$8 -> Real $2023 | D20: Dollars | G20: =G19*(Inputs!P$23-1) ->  | H20: =H19*(Inputs!Q$23-1) ->  | I20: =I19*(Inputs!R$23-1) ->  | J20: 3073.570484 | K20: 18905.74032 | L20: 21979.31081
B21: Materials | C21: =Inputs!$B$8 -> Real $2023 | D21: Dollars | G21: =SUM(Inputs!P$33:P$139*Inputs!$X$33:$X$139*(1+Inputs!$L$33:$L$139)*(Inputs!$J$33:$J$139=$B18))*INDEX(IF(Inputs!$F$32="Mid",Inputs!$N$21:$T$21,Inputs!$N$22:$T$22),MATCH(Inputs!$F$31,Inputs!$N$20:$T$20,0)) ->  | H21: =SUM(Inputs!Q$33:Q$139*Inputs!$X$33:$X$139*(1+Inputs!$L$33:$L$139)*(Inputs!$J$33:$J$139=$B18))*INDEX(IF(Inputs!$F$32="Mid",Inputs!$N$21:$T$21,Inputs!$N$22:$T$22),MATCH(Inputs!$F$31,Inputs!$N$20:$T$20,0)) ->  | I21: =SUM(Inputs!R$33:R$139*Inputs!$X$33:$X$139*(1+Inputs!$L$33:$L$139)*(Inputs!$J$33:$J$139=$B18))*INDEX(IF(Inputs!$F$32="Mid",Inputs!$N$21:$T$21,Inputs!$N$22:$T$22),MATCH(Inputs!$F$31,Inputs!$N$20:$T$20,0)) ->  | J21: 73066.968 | K21: 90881.8812 | L21: 163948.8492
B22: Sub-Total | C22: =Inputs!$B$8 -> Real $2023 | D22: Dollars | G22: =SUM(G19:G21) ->  | J22: 168633.3647 | K22: 630036.7409 | L22: 798670.1056
B24: =Inputs!B68 -> Wagga substation
B25: Labour | C25: =Inputs!$B$8 -> Real $2023 | D25: Dollars | G25: =SUM(Inputs!P$33:P$139*Inputs!$W$33:$W$139*(1+Inputs!$L$33:$L$139)*(Inputs!$J$33:$J$139=$B24))*INDEX(IF(Inputs!$F$32="Mid",Inputs!$N$21:$T$21,Inputs!$N$22:$T$22),MATCH(Inputs!$F$31,Inputs!$N$20:$T$20,0)) ->  | H25: =SUM(Inputs!Q$33:Q$139*Inputs!$W$33:$W$139*(1+Inputs!$L$33:$L$139)*(Inputs!$J$33:$J$139=$B24))*INDEX(IF(Inputs!$F$32="Mid",Inputs!$N$21:$T$21,Inputs!$N$22:$T$22),MATCH(Inputs!$F$31,Inputs!$N$20:$T$20,0)) ->  | I25: =SUM(Inputs!R$33:R$139*Inputs!$W$33:$W$139*(1+Inputs!$L$33:$L$139)*(Inputs!$J$33:$J$139=$B24))*INDEX(IF(Inputs!$F$32="Mid",Inputs!$N$21:$T$21,Inputs!$N$22:$T$22),MATCH(Inputs!$F$31,Inputs!$N$20:$T$20,0)) ->  | J25: 13402.33339 | K25: 174946.0866 | L25: 188348.42
B26: Labour escalation | C26: =Inputs!$B$8 -> Real $2023 | D26: Dollars | G26: =G25*(Inputs!P$23-1) ->  | H26: =H25*(Inputs!Q$23-1) ->  | I26: =I25*(Inputs!R$23-1) ->  | J26: 445.3644461 | K26: 6357.502897 | L26: 6802.867343
B27: Materials | C27: =Inputs!$B$8 -> Real $2023 | D27: Dollars | G27: =SUM(Inputs!P$33:P$139*Inputs!$X$33:$X$139*(1+Inputs!$L$33:$L$139)*(Inputs!$J$33:$J$139=$B24))*INDEX(IF(Inputs!$F$32="Mid",Inputs!$N$21:$T$21,Inputs!$N$22:$T$22),MATCH(Inputs!$F$31,Inputs!$N$20:$T$20,0)) ->  | H27: =SUM(Inputs!Q$33:Q$139*Inputs!$X$33:$X$139*(1+Inputs!$L$33:$L$139)*(Inputs!$J$33:$J$139=$B24))*INDEX(IF(Inputs!$F$32="Mid",Inputs!$N$21:$T$21,Inputs!$N$22:$T$22),MATCH(Inputs!$F$31,Inputs!$N$20:$T$20,0)) ->  | I27: =SUM(Inputs!R$33:R$139*Inputs!$X$33:$X$139*(1+Inputs!$L$33:$L$139)*(Inputs!$J$33:$J$139=$B24))*INDEX(IF(Inputs!$F$32="Mid",Inputs!$N$21:$T$21,Inputs!$N$22:$T$22),MATCH(Inputs!$F$31,Inputs!$N$20:$T$20,0)) ->  | J27: 68377.95 | K27: 73686.042 | L27: 142063.992
B28: Sub-Total | C28: =Inputs!$B$8 -> Real $2023 | D28: Dollars | G28: =SUM(G25:G27) ->  | J28: 82225.64783 | K28: 254989.6315 | L28: 337215.2793
B30: =Inputs!B78 -> Gugaa substation
B31: Labour | C31: =Inputs!$B$8 -> Real $2023 | D31: Dollars | G31: =SUM(Inputs!P$33:P$139*Inputs!$W$33:$W$139*(1+Inputs!$L$33:$L$139)*(Inputs!$J$33:$J$139=$B30))*INDEX(IF(Inputs!$F$32="Mid",Inputs!$N$21:$T$21,Inputs!$N$22:$T$22),MATCH(Inputs!$F$31,Inputs!$N$20:$T$20,0)) ->  | H31: =SUM(Inputs!Q$33:Q$139*Inputs!$W$33:$W$139*(1+Inputs!$L$33:$L$139)*(Inputs!$J$33:$J$139=$B30))*INDEX(IF(Inputs!$F$32="Mid",Inputs!$N$21:$T$21,Inputs!$N$22:$T$22),MATCH(Inputs!$F$31,Inputs!$N$20:$T$20,0)) ->  | I31: =SUM(Inputs!R$33:R$139*Inputs!$W$33:$W$139*(1+Inputs!$L$33:$L$139)*(Inputs!$J$33:$J$139=$B30))*INDEX(IF(Inputs!$F$32="Mid",Inputs!$N$21:$T$21,Inputs!$N$22:$T$22),MATCH(Inputs!$F$31,Inputs!$N$20:$T$20,0)) ->  | J31: 805891.9622 | K31: 640565.1843 | L31: 1446457.147
B32: Labour escalation | C32: =Inputs!$B$8 -> Real $2023 | D32: Dollars | G32: =G31*(Inputs!P$23-1) ->  | H32: =H31*(Inputs!Q$23-1) ->  | I32: =I31*(Inputs!R$23-1) ->  | J32: 26780.08501 | K32: 23278.00007 | L32: 50058.08507
B33: Materials | C33: =Inputs!$B$8 -> Real $2023 | D33: Dollars | G33: =SUM(Inputs!P$33:P$139*Inputs!$X$33:$X$139*(1+Inputs!$L$33:$L$139)*(Inputs!$J$33:$J$139=$B30))*INDEX(IF(Inputs!$F$32="Mid",Inputs!$N$21:$T$21,Inputs!$N$22:$T$22),MATCH(Inputs!$F$31,Inputs!$N$20:$T$20,0)) ->  | H33: =SUM(Inputs!Q$33:Q$139*Inputs!$X$33:$X$139*(1+Inputs!$L$33:$L$139)*(Inputs!$J$33:$J$139=$B30))*INDEX(IF(Inputs!$F$32="Mid",Inputs!$N$21:$T$21,Inputs!$N$22:$T$22),MATCH(Inputs!$F$31,Inputs!$N$20:$T$20,0)) ->  | I33: =SUM(Inputs!R$33:R$139*Inputs!$X$33:$X$139*(1+Inputs!$L$33:$L$139)*(Inputs!$J$33:$J$139=$B30))*INDEX(IF(Inputs!$F$32="Mid",Inputs!$N$21:$T$21,Inputs!$N$22:$T$22),MATCH(Inputs!$F$31,Inputs!$N$20:$T$20,0)) ->  | J33: 525437.3484 | K33: 257265 | L33: 782702.3484
B34: Sub-Total | C34: =Inputs!$B$8 -> Real $2023 | D34: Dollars | G34: =SUM(G31:G33) ->  | J34: 1358109.396 | K34: 921108.1844 | L34: 2279217.58
B36: =Inputs!B108 -> Maragle substation
B37: Labour | C37: =Inputs!$B$8 -> Real $2023 | D37: Dollars | G37: =SUM(Inputs!P$33:P$139*Inputs!$W$33:$W$139*(1+Inputs!$L$33:$L$139)*(Inputs!$J$33:$J$139=$B36))*INDEX(IF(Inputs!$F$32="Mid",Inputs!$N$21:$T$21,Inputs!$N$22:$T$22),MATCH(Inputs!$F$31,Inputs!$N$20:$T$20,0)) ->  | H37: =SUM(Inputs!Q$33:Q$139*Inputs!$W$33:$W$139*(1+Inputs!$L$33:$L$139)*(Inputs!$J$33:$J$139=$B36))*INDEX(IF(Inputs!$F$32="Mid",Inputs!$N$21:$T$21,Inputs!$N$22:$T$22),MATCH(Inputs!$F$31,Inputs!$N$20:$T$20,0)) ->  | I37: =SUM(Inputs!R$33:R$139*Inputs!$W$33:$W$139*(1+Inputs!$L$33:$L$139)*(Inputs!$J$33:$J$139=$B36))*INDEX(IF(Inputs!$F$32="Mid",Inputs!$N$21:$T$21,Inputs!$N$22:$T$22),MATCH(Inputs!$F$31,Inputs!$N$20:$T$20,0)) ->  | J37: 2090.533766 | K37: 1667006.598 | L37: 1669097.132
B38: Labour escalation | C38: =Inputs!$B$8 -> Real $2023 | D38: Dollars | G38: =G37*(Inputs!P$23-1) ->  | H38: =H37*(Inputs!Q$23-1) ->  | I38: =I37*(Inputs!R$23-1) ->  | J38: 69.46920256 | K38: 60578.65875 | L38: 60648.12796
B39: Materials | C39: =Inputs!$B$8 -> Real $2023 | D39: Dollars | G39: =SUM(Inputs!P$33:P$139*Inputs!$X$33:$X$139*(1+Inputs!$L$33:$L$139)*(Inputs!$J$33:$J$139=$B36))*INDEX(IF(Inputs!$F$32="Mid",Inputs!$N$21:$T$21,Inputs!$N$22:$T$22),MATCH(Inputs!$F$31,Inputs!$N$20:$T$20,0)) ->  | H39: =SUM(Inputs!Q$33:Q$139*Inputs!$X$33:$X$139*(1+Inputs!$L$33:$L$139)*(Inputs!$J$33:$J$139=$B36))*INDEX(IF(Inputs!$F$32="Mid",Inputs!$N$21:$T$21,Inputs!$N$22:$T$22),MATCH(Inputs!$F$31,Inputs!$N$20:$T$20,0)) ->  | I39: =SUM(Inputs!R$33:R$139*Inputs!$X$33:$X$139*(1+Inputs!$L$33:$L$139)*(Inputs!$J$33:$J$139=$B36))*INDEX(IF(Inputs!$F$32="Mid",Inputs!$N$21:$T$21,Inputs!$N$22:$T$22),MATCH(Inputs!$F$31,Inputs!$N$20:$T$20,0)) ->  | J39: 113935.5 | K39: 631584.5454 | L39: 745520.0454
B40: Sub-Total | C40: =Inputs!$B$8 -> Real $2023 | D40: Dollars | G40: =SUM(G37:G39) ->  | J40: 116095.503 | K40: 2359169.803 | L40: 2475265.306
B42: =Inputs!B138 -> Asset Management
B43: Labour | C43: =Inputs!$B$8 -> Real $2023 | D43: Dollars | G43: =SUM(Inputs!P$33:P$139*Inputs!$W$33:$W$139*(1+Inputs!$L$33:$L$139)*(Inputs!$J$33:$J$139=$B42))*INDEX(IF(Inputs!$F$32="Mid",Inputs!$N$21:$T$21,Inputs!$N$22:$T$22),MATCH(Inputs!$F$31,Inputs!$N$20:$T$20,0)) ->  | H43: =SUM(Inputs!Q$33:Q$139*Inputs!$W$33:$W$139*(1+Inputs!$L$33:$L$139)*(Inputs!$J$33:$J$139=$B42))*INDEX(IF(Inputs!$F$32="Mid",Inputs!$N$21:$T$21,Inputs!$N$22:$T$22),MATCH(Inputs!$F$31,Inputs!$N$20:$T$20,0)) ->  | I43: =SUM(Inputs!R$33:R$139*Inputs!$W$33:$W$139*(1+Inputs!$L$33:$L$139)*(Inputs!$J$33:$J$139=$B42))*INDEX(IF(Inputs!$F$32="Mid",Inputs!$N$21:$T$21,Inputs!$N$22:$T$22),MATCH(Inputs!$F$31,Inputs!$N$20:$T$20,0)) ->  | J43: 0 | K43: 0 | L43: 0
B44: Labour escalation | C44: =Inputs!$B$8 -> Real $2023 | D44: Dollars | G44: =G43*(Inputs!P$23-1) ->  | H44: =H43*(Inputs!Q$23-1) ->  | I44: =I43*(Inputs!R$23-1) ->  | J44: 0 | K44: 0 | L44: 0
B45: Materials | C45: =Inputs!$B$8 -> Real $2023 | D45: Dollars | G45: =SUM(Inputs!P$33:P$139*Inputs!$X$33:$X$139*(1+Inputs!$L$33:$L$139)*(Inputs!$J$33:$J$139=$B42))*INDEX(IF(Inputs!$F$32="Mid",Inputs!$N$21:$T$21,Inputs!$N$22:$T$22),MATCH(Inputs!$F$31,Inputs!$N$20:$T$20,0)) ->  | H45: =SUM(Inputs!Q$33:Q$139*Inputs!$X$33:$X$139*(1+Inputs!$L$33:$L$139)*(Inputs!$J$33:$J$139=$B42))*INDEX(IF(Inputs!$F$32="Mid",Inputs!$N$21:$T$21,Inputs!$N$22:$T$22),MATCH(Inputs!$F$31,Inputs!$N$20:$T$20,0)) ->  | I45: =SUM(Inputs!R$33:R$139*Inputs!$X$33:$X$139*(1+Inputs!$L$33:$L$139)*(Inputs!$J$33:$J$139=$B42))*INDEX(IF(Inputs!$F$32="Mid",Inputs!$N$21:$T$21,Inputs!$N$22:$T$22),MATCH(Inputs!$F$31,Inputs!$N$20:$T$20,0)) ->  | J45: 0 | K45: 0 | L45: 0
B46: Sub-Total | C46: =Inputs!$B$8 -> Real $2023 | D46: Dollars | G46: =SUM(G43:G45) ->  | J46: 0 | K46: 0 | L46: 0
B48: Labour | C48: =Inputs!$B$8 -> Real $2023 | D48: Dollars | G48: =G7+G13+G19+G25+G31+G37+G43 ->  | J48: 942588.9672 | K48: 3191493.287 | L48: 4134082.254
B49: Labour escalation | C49: =Inputs!$B$8 -> Real $2023 | D49: Dollars | J49: 31322.57654 | K49: 115978.1749 | L49: 147300.7514
B50: Materials | C50: =Inputs!$B$8 -> Real $2023 | D50: Dollars | J50: 1384701.056 | K50: 2792369.139 | L50: 4177070.195
B51: Total operating and maintenance costs | C51: =Inputs!$B$8 -> Real $2023 | D51: Dollars | G51: =SUM(G48:G50) ->  | J51: 2358612.6 | K51: 6099840.6 | L51: 8458453.201
B54: =Inputs!$B$144 -> Property costs | L54: Total
B55: Component | C55: Dollar basis | E55: =Inputs!O$20 -> 2023 | F55: =Inputs!O$20 -> 2023 | G55: =Inputs!P$20 -> 2024 | H55: =Inputs!Q$20 -> 2025 | I55: =Inputs!R$20 -> 2026 | J55: =Inputs!S$20 -> 2027 | K55: =Inputs!T$20 -> 2028
B57: Property costs | C57: =Inputs!$B$8 -> Real $2023 | D57: Dollars | G57: =Inputs!P$158*INDEX(IF(Inputs!$F$150="Mid",Inputs!$N$21:$T$21,Inputs!$N$22:$T$22),MATCH(Inputs!$F$149,Inputs!$N$20:$T$20,0)) -> 0 | H57: 76040 | I57: 76040 | J57: 94040 | K57: 94040 | L57: 340160
B59: Total property costs | C59: =Inputs!$B$8 -> Real $2023 | D59: Dollars | G59: =G57 -> 0 | H59: 76040 | I59: 76040 | J59: 94040 | K59: 94040 | L59: 340160
B62: =Inputs!$B$161 -> Easement establishment costs | L62: Total
B63: Component | C63: Dollar basis | E63: =Inputs!O$20 -> 2023 | F63: =Inputs!O$20 -> 2023 | G63: =Inputs!P$20 -> 2024 | H63: =Inputs!Q$20 -> 2025 | I63: =Inputs!R$20 -> 2026 | J63: =Inputs!S$20 -> 2027 | K63: =Inputs!T$20 -> 2028
B65: Easement establishment costs | C65: =Inputs!$B$8 -> Real $2023 | D65: Dollars | G65: =Inputs!P$166*INDEX(IF(Inputs!$F$167="Mid",Inputs!$N$21:$T$21,Inputs!$N$22:$T$22),MATCH(Inputs!$F$166,Inputs!$N$20:$T$20,0)) -> 0 | H65: =Inputs!Q$166*INDEX(IF(Inputs!$F$167="Mid",Inputs!$N$21:$T$21,Inputs!$N$22:$T$22),MATCH(Inputs!$F$166,Inputs!$N$20:$T$20,0)) -> 60000 | I65: =Inputs!R$166*INDEX(IF(Inputs!$F$167="Mid",Inputs!$N$21:$T$21,Inputs!$N$22:$T$22),MATCH(Inputs!$F$166,Inputs!$N$20:$T$20,0)) -> 60000 | J65: =Inputs!S$166*INDEX(IF(Inputs!$F$167="Mid",Inputs!$N$21:$T$21,Inputs!$N$22:$T$22),MATCH(Inputs!$F$166,Inputs!$N$20:$T$20,0)) -> 60000 | K65: =Inputs!T$166*INDEX(IF(Inputs!$F$167="Mid",Inputs!$N$21:$T$21,Inputs!$N$22:$T$22),MATCH(Inputs!$F$166,Inputs!$N$20:$T$20,0)) -> 60000 | L65: =SUM(E65:K65) -> 240000
B67: Total easement establishment costs | C67: =Inputs!$B$8 -> Real $2023 | D67: Dollars | G67: =G65 -> 0 | H67: =H65 -> 60000 | I67: =I65 -> 60000 | J67: =J65 -> 60000 | K67: =K65 -> 60000 | L67: =SUM(E67:K67) -> 240000
B70: =Inputs!$B$170 -> Strategic benefit payments | L70: Total
B71: Component | C71: Dollar basis | E71: =Inputs!O$20 -> 2023 | F71: =Inputs!O$20 -> 2023 | G71: =Inputs!P$20 -> 2024 | H71: =Inputs!Q$20 -> 2025 | I71: =Inputs!R$20 -> 2026 | J71: =Inputs!S$20 -> 2027 | K71: =Inputs!T$20 -> 2028
B73: Strategic benefit payments | C73: =Inputs!$B$8 -> Real $2023 | D73: Dollars | G73: =Inputs!P$178*INDEX(IF(Inputs!$F$176="Mid",Inputs!$N$21:$T$21,Inputs!$N$22:$T$22),MATCH(Inputs!$F$175,Inputs!$N$20:$T$20,0)) -> 0 | H73: 0 | I73: 0 | J73: 3115091.992 | K73: 3115091.992 | L73: 6230183.984
B75: Total strategic benefit payments | C75: =Inputs!$B$8 -> Real $2023 | D75: Dollars | G75: =G73 -> 0 | H75: 0 | I75: 0 | J75: 3115091.992 | K75: 3115091.992 | L75: 6230183.984
B78: =Inputs!$B$181 -> Insurance costs | L78: Total
B79: Component | C79: Dollar basis | E79: =Inputs!O$20 -> 2023 | F79: =Inputs!O$20 -> 2023 | G79: =Inputs!P$20 -> 2024 | H79: =Inputs!Q$20 -> 2025 | I79: =Inputs!R$20 -> 2026 | J79: =Inputs!S$20 -> 2027 | K79: =Inputs!T$20 -> 2028
B81: Insurance premium | C81: =Inputs!$B$8 -> Real $2023 | D81: Dollars | G81: =Inputs!P$186*INDEX(IF(Inputs!$F$187="Mid",Inputs!$N$21:$T$21,Inputs!$N$22:$T$22),MATCH(Inputs!$F$186,Inputs!$N$20:$T$20,0)) -> 0 | H81: 0 | I81: 0 | J81: 3594694.009 | K81: 3594694.009 | L81: 7189388.018
B83: Total insurance costs | C83: =Inputs!$B$8 -> Real $2023 | D83: Dollars | G83: =G81 -> 0 | H83: 0 | I83: 0 | J83: 3594694.009 | K83: 3594694.009 | L83: 7189388.018
B86: =Inputs!$B$190 -> Vegetaion integrity rehabilitation costs | L86: Total
B87: Component | C87: Dollar basis | E87: =Inputs!O$20 -> 2023 | F87: =Inputs!O$20 -> 2023 | G87: =Inputs!P$20 -> 2024 | H87: =Inputs!Q$20 -> 2025 | I87: =Inputs!R$20 -> 2026 | J87: =Inputs!S$20 -> 2027 | K87: =Inputs!T$20 -> 2028
B89: Vegetaion integrity rehabilitation costs | C89: =Inputs!$B$8 -> Real $2023 | D89: Dollars | G89: =Inputs!P$195*INDEX(IF(Inputs!$F$196="Mid",Inputs!$N$21:$T$21,Inputs!$N$22:$T$22),MATCH(Inputs!$F$195,Inputs!$N$20:$T$20,0)) -> 0 | H89: =Inputs!Q$195*INDEX(IF(Inputs!$F$196="Mid",Inputs!$N$21:$T$21,Inputs!$N$22:$T$22),MATCH(Inputs!$F$195,Inputs!$N$20:$T$20,0)) -> 0 | I89: =Inputs!R$195*INDEX(IF(Inputs!$F$196="Mid",Inputs!$N$21:$T$21,Inputs!$N$22:$T$22),MATCH(Inputs!$F$195,Inputs!$N$20:$T$20,0)) -> 0 | J89: 357000 | K89: 357000 | L89: 714000
B91: Total insurance costs | C91: =Inputs!$B$8 -> Real $2023 | D91: Dollars | G91: =G89 -> 0 | H91: =H89 -> 0 | I91: =I89 -> 0 | J91: 357000 | K91: 357000 | L91: 714000
B95: Total costs (excluding debt raising costs) | C95: =Inputs!$B$8 -> Real $2023 | D95: Dollars | G95: =G51+G59+G67+G75+G83+G91 ->  | H95: =H51+H59+H67+H75+H83+H91 ->  | I95: =I51+I59+I67+I75+I83+I91 ->  | J95: =J51+J59+J67+J75+J83+J91 -> 9579438.601 | K95: =K51+K59+K67+K75+K83+K91 -> 13320666.6 | L95: =SUM(E95:K95) -> 
B97: Debt raising costs | C97: =Inputs!$B$8 -> Real $2023 | D97: Dollars | G97: =Inputs!P$204*INDEX(IF(Inputs!$F$205="Mid",Inputs!$N$21:$T$21,Inputs!$N$22:$T$22),MATCH(Inputs!$F$204,Inputs!$N$20:$T$20,0)) -> 0 | H97: =Inputs!Q$204*INDEX(IF(Inputs!$F$205="Mid",Inputs!$N$21:$T$21,Inputs!$N$22:$T$22),MATCH(Inputs!$F$204,Inputs!$N$20:$T$20,0)) -> 38243.59956 | I97: =Inputs!R$204*INDEX(IF(Inputs!$F$205="Mid",Inputs!$N$21:$T$21,Inputs!$N$22:$T$22),MATCH(Inputs!$F$204,Inputs!$N$20:$T$20,0)) -> 1094884.005 | J97: =Inputs!S$204*INDEX(IF(Inputs!$F$205="Mid",Inputs!$N$21:$T$21,Inputs!$N$22:$T$22),MATCH(Inputs!$F$204,Inputs!$N$20:$T$20,0)) -> 2075390.964 | K97: =Inputs!T$204*INDEX(IF(Inputs!$F$205="Mid",Inputs!$N$21:$T$21,Inputs!$N$22:$T$22),MATCH(Inputs!$F$204,Inputs!$N$20:$T$20,0)) -> 2104318.935 | L97: =SUM(E97:K97) -> 5312837.504
B99: Total costs (including debt raising costs) | C99: =Inputs!$B$8 -> Real $2023 | D99: Dollars | G99: =G95+G97 ->  | H99: =H95+H97 ->  | I99: =I95+I97 ->  | J99: =J95+J97 -> 11654829.57 | K99: =K95+K97 -> 15424985.54 | L99: =SUM(E99:K99) -> 

Sheet Outputs
A1: Outputs | E1: =Inputs!B8 -> Real $2023
B3: PTRM and Proposal
B5: Operating Costs | L5: Total
B6: Component | C6: Dollar basis | D6: Units | E6: =Inputs!N$20 -> 2022 | F6: =Inputs!O$20 -> 2023 | G6: =Inputs!P$20 -> 2024 | H6: =Inputs!Q$20 -> 2025 | I6: =Inputs!R$20 -> 2026 | J6: =Inputs!S$20 -> 2027 | K6: =Inputs!T$20 -> 2028
B8: Costs
B9: Operating and maintenance costs (excl labour escalation) | C9: =Inputs!$B$8 -> Real $2023 | D9: $Million | G9: =(Calculations!G51-Calculations!G49)/10^6 ->  | H9: 0 | I9: 0 | J9: 2.327290024 | K9: 5.983862426 | L9: 8.311152449
B10: =Calculations!B54 -> Property costs | C10: =Inputs!$B$8 -> Real $2023 | D10: $Million | G10: =Calculations!G59/10^6 -> 0 | H10: 0.07604 | I10: 0.07604 | J10: 0.09404 | K10: 0.09404 | L10: 0.34016
B11: =Calculations!B62 -> Easement establishment costs | C11: =Inputs!$B$8 -> Real $2023 | D11: $Million | G11: =Calculations!G67/10^6 -> 0 | H11: 0.06 | I11: 0.06 | J11: 0.06 | K11: 0.06 | L11: 0.24
B12: =Calculations!B70 -> Strategic benefit payments | C12: =Inputs!$B$8 -> Real $2023 | D12: $Million | G12: =Calculations!G75/10^6 -> 0 | H12: 0 | I12: 0 | J12: 3.115091992 | K12: 3.115091992 | L12: 6.230183984
B13: Insurance Costs | C13: =Inputs!$B$8 -> Real $2023 | D13: $Million | G13: =Calculations!G83/10^6 -> 0 | H13: 0 | I13: 0 | J13: 3.594694009 | K13: 3.594694009 | L13: 7.189388018
B14: Vegetaion integrity rehabilitation costs | C14: =Inputs!$B$8 -> Real $2023 | D14: $Million | G14: =Calculations!G91/10^6 -> 0 | H14: 0 | I14: 0 | J14: 0.357 | K14: 0.357 | L14: 0.714
B15: Real input cost escalation | C15: =Inputs!$B$8 -> Real $2023 | D15: $Million | G15: =Calculations!G49/10^6 ->  | H15: 0 | I15: 0 | J15: 0.03132257654 | K15: 0.1159781749 | L15: 0.1473007514
B17: Total (excluding debt raising costs) | C17: =Inputs!$B$8 -> Real $2023 | D17: $Million | E17: =SUM(E9:E15) -> 0 | F17: 0 | H17: 0.13604 | I17: 0.13604 | J17: 9.579438601 | K17: 13.3206666 | L17: 23.1721852
B19: Debt Raising Costs | C19: =Inputs!$B$8 -> Real $2023 | D19: $Million | G19: =Calculations!G97/10^6 -> 0 | H19: 0.03824359956 | I19: 1.094884005 | J19: 2.075390964 | K19: 2.104318935 | L19: 5.312837504
B21: Total (including debt raising costs) | C21: =Inputs!$B$8 -> Real $2023 | D21: $Million | E21: =E17+E19 -> 0 | F21: 0 | H21: 0.1742835996 | I21: 1.230924005 | J21: 11.65482957 | K21: 15.42498554 | L21: 28.48502271
